Cogmind - Beta 14 @@@ ROGUE MODE // 2024.11.18 @ 16:52:17 Player: atomicthumbs Result: Destroyed by C-17 Slicer with Blade Saw Performance ------------- Evolutions (2) 1000 Regions Visited (4) 800 Robots Destroyed (19) 95 Value Destroyed (533) 533 Prototype IDs (6) 120 Alien Tech Used (0) 0 Bonus (14) 14 TOTAL SCORE: 2562 Bonus ------- Follower Combat Kills 14 Cogmind --------- Core Integrity 0/550 Matter 300/300 Energy 216/275 System Corruption 1% Temperature Cool (4) Movement Flying (37) Location -8/Materials Parts ------- > --- POWER (1) -------- Deuterium Engine > --- PROPULSION (3) --- Improved Flight Unit Improved Flight Unit > --- UTILITY (4) ------ Improved Heat Sink > --- WEAPON (3) ------- (None) > --- INVENTORY (5) ---- Light Nuclear Core High-capacity Battery (250) Heavy EM Shotgun Improved Datajack Flail Peak State ------------ > --- POWER ------------ Light Angular Momentum Engine > --- PROPULSION ------- Improved Flight Unit Improved Flight Unit Improved Flight Unit > --- UTILITY ---------- (None) > --- WEAPON ----------- Heavy EM Shotgun Advanced Beam Rifle Flail > --- INVENTORY -------- Improved Heat Sink High-capacity Battery ECM Suite Particle Gun [Rating: 24] Favorites ----------- Power Heavy Ion Engine Engine Heavy Ion Engine Propulsion Aluminum Leg Treads Light Treads Leg Aluminum Leg Wheel Armored Wheel Hover Unit Hover Unit Flight Unit Improved Flight Unit Utility Small Storage Unit Device ECM Suite Storage Small Storage Unit Processor Salvage Targeting Computer Protection Weapon Shielding Weapon Particle Gun Energy Gun Particle Gun Ballistic Gun Assault Rifle Special Weapon Mining Laser Impact Weapon Flail Build | -11 -10 -9 -9 -8 ------- Run | Yrd Mat Mat Min Mat Slots Evolved 4 | . . 2 . 2 Power . | . . . . . Propulsion 1 | . . 1 . . Utility 2 | . . 1 . 1 Weapon 1 | . . . . 1 Parts Attached 47 | 6 5 4 1 31 Power 5 | 1 . 2 . 2 Engine 5 | 1 . 2 . 2 Core . | . . . . . Reactor . | . . . . . Propulsion 13 | 2 . 1 . 10 Treads 2 | . . . . 2 Leg 6 | 2 . 1 . 3 Wheel 1 | . . . . 1 Hover 1 | . . . . 1 Flight 3 | . . . . 3 Utility 13 | 1 3 1 1 7 Device 5 | . . . . 5 Storage 4 | 1 1 . . 2 Processor 1 | . . . 1 . Hackware . | . . . . . Protection 3 | . 2 1 . . Artifact . | . . . . . Weapon 16 | 2 2 . . 12 Energy Gun 11 | . 2 . . 9 Energy Cannon . | . . . . . Ballistic Gun 2 | 2 . . . . Ballistic Cannon . | . . . . . Launcher . | . . . . . Special Weapon 1 | . . . . 1 Impact Weapon 2 | . . . . 2 Slashing Weapon . | . . . . . Piercing Weapon . | . . . . . Special Melee Weapon . | . . . . . Unidentified Prototypes 4 | . . 1 . 3 Corrupted Parts 1 | . . . . 1 System Corruption 1 | . . . . 1 Parts Lost 10 | . . 1 . 9 Power 1 | . . . . 1 Propulsion 5 | . . . . 5 Utility 3 | . . 1 . 2 Weapon 1 | . . . . 1 Highest Loss Streak 4 | . . 1 . 4 To Critical Strikes . | . . . . . Average Slot Usage (%) 92 | . 99 88 99 80 Engine 11 | . 14 11 11 9 Treads 1 | . . . . 4 Leg 25 | . 28 27 33 13 Flight 1 | . . . . 6 Device 1 | . . . . 4 Storage 10 | . 14 11 11 6 Processor 5 | . . . 10 6 Protection 10 | . 12 16 11 6 Energy Gun 19 | . 13 22 22 20 Ballistic Gun 3 | . 14 . . . Peak Build Rating 24 | 6 11 15 15 24 Average Rating 13 | 5 8 12 14 17 On Entrance 9 | . 6 11 13 15 Naked Turns . | . . . . . Heaviest Build 28 | 14 23 27 20 28 Greatest Support 30 | 20 20 30 30 30 Greatest Overweight (x) 7 | 1 1 1 . 7 Average Overweight (x) . | . . . . . Largest Inventory Capacity 10 | 8 8 8 8 10 Average Capacity 7 | 7 8 8 8 7 Most Carried 8 | 6 8 8 8 8 Average Carried 7 | 3 7 7 7 6 Final Capacity 8 | 8 8 8 8 5 Final Carried 8 | 6 8 7 8 5 Class Distribution -------------------- 83% | Mutant 15% | Tank Dominant Class ---------------- Mutant | -10/Materials Mutant | -9/Materials Mutant | -9/Mines Tank | -8/Materials Resources | -11 -10 -9 -9 -8 ----------- Run | Yrd Mat Mat Min Mat Matter Collected 768 | 239 42 80 93 314 Remotely . | . . . . . Salvage Created 875 | . 42 90 31 712 Parts 36 | . 3 3 4 26 Haulers Intercepted 2 | . . . . 2 Recyclers Shooed 3 | . . . . 3 Parts Field Recycled . | . . . . . Retrieved Matter . | . . . . . Parts Self-Destructed . | . . . . . Prevented . | . . . . . Kills | -11 -10 -9 -9 -8 ------- Run | Yrd Mat Mat Min Mat Combat Hostiles Destroyed 12 | . 1 2 2 7 Guns 11 | . 1 2 2 6 AOE 1 | . . . . 1 Classes Destroyed 8 | . 1 2 1 4 Hauler 2 | . . . . 2 Recycler 3 | . . . . 3 Operator 1 | . . . . 1 Watcher 1 | . . 1 . . Swarmer 2 | . . . 2 . Grunt 6 | . 1 1 . 4 Sentry 3 | . . 1 . 2 Hunter 1 | . . . . 1 Best Kill Streak 4 | . 1 2 2 4 Combat Bots Only 2 | . 1 1 2 2 Max Kills in Single Turn 2 | . 1 1 1 2 Gunslinging . | . . . . . Exploded 1 | . . . . 1 Melee . | . . . . . Uniques/NPCs Destroyed . | . . . . . Combat | -11 -10 -9 -9 -8 -------- Run | Yrd Mat Mat Min Mat Hostile Shots Fired 121 | . 1 27 15 78 Missed 37 | . 1 7 2 27 Damage Taken 1622 | . 14 317 111 1180 Core 662 | . . 82 24 556 Absorbed by Shields . | . . . . . Redirected to Shielding 56 | . . . 9 47 Core Remaining (%) 91 | 100 100 . 73 . Volleys Fired 66 | . 3 18 3 42 Largest 3 | . 2 2 2 3 Hottest 195 | . 130 130 130 195 Shots Fired 144 | . 6 36 6 96 Gun 144 | . 6 36 6 96 Cannon . | . . . . . Launcher . | . . . . . Special . | . . . . . Kinetic . | . . . . . Thermal 124 | . 6 36 6 76 Explosive . | . . . . . Electromagnetic 20 | . . . . 20 Robot Hit Streak 6 | . 1 6 2 5 Robot Miss Streak 4 | . 3 3 1 4 Penetration Max . | . . . . . Secondary Targets 1 | . . . 1 . Max Gunslinging Chain 1 | . . . 1 . Shots Hit Robots 81 | . 2 19 4 56 Core Hits 41 | . 2 6 2 31 Critical Kills . | . . . . . Critical Parts Destroyed . | . . . . . Critical Strikes 4 | . . . . 4 Burn 4 | . . . . 4 Melee Attacks . | . . . . . Impact . | . . . . . Slashing . | . . . . . Piercing . | . . . . . Sneak Attacks . | . . . . . Combat Hostiles . | . . . . . Follow-up Attacks . | . . . . . Damage Inflicted 1275 | . 31 290 69 885 Guns 1242 | . 31 290 69 852 Cannons . | . . . . . Explosions 33 | . . . . 33 Melee . | . . . . . Ramming . | . . . . . Kinetic . | . . . . . Thermal 1091 | . 31 290 69 701 Explosive . | . . . . . Electromagnetic 184 | . . . . 184 Impact . | . . . . . Slashing . | . . . . . Piercing . | . . . . . Highest Corruption 1 | . . . . 1 Average Corruption 1 | . . . . 1 Corruption Purged . | . . . . . Corruption Blocked . | . . . . . Overload Shots . | . . . . . Overflow Damage . | . . . . . Projectiles . | . . . . . Explosions . | . . . . . Melee . | . . . . . Knockbacks . | . . . . . Impact . | . . . . . Kinetic . | . . . . . Secondary . | . . . . . Self-Inflicted Damage . | . . . . . Shots . | . . . . . Rammed . | . . . . . Targets Rammed . | . . . . . Kicked . | . . . . . Crushed . | . . . . . Highest Temperature 844 | . 156 494 170 844 Average Temperature 229 | . 70 268 91 236 Received Heat Transfer 336 | . . 84 . 252 Effects 45 | . . 11 . 34 Shutdowns 7 | . . 2 . 5 Energy Bleed 6 | . . . . 6 Interference 7 | . . 4 . 3 Matter Decay 4 | . . 3 . 1 Short Circuit 5 | . . . . 5 Damage (minor) 1 | . . 1 . . Damage (major) 12 | . . 1 . 11 Damage (core) 3 | . . . . 3 Siege Activations . | . . . . . Robots Corrupted . | . . . . . Combat Hostiles . | . . . . . Parts Fried 1 | . . . . 1 Impact Corruptions . | . . . . . Robots Melted . | . . . . . Combat Hostiles . | . . . . . Parts Melted 5 | . . 1 . 4 Heat Transferred 2849 | . 74 703 148 1924 Parts Sabotaged . | . . . . . Parts Stolen . | . . . . . Parts Stripped . | . . . . . Power Chain Reactions 2 | . . . . 2 Alert | -11 -10 -9 -9 -8 ------- Run | Yrd Mat Mat Min Mat Peak Influence 199 | . 52 117 136 199 Initial 41 | . . . 41 . Average 56 | . 6 56 77 87 Maximum Alert Level . | . . . . . Low Security (%) 100 | 100 100 100 100 100 Level 1 . | . . . . . Level 2 . | . . . . . Level 3 . | . . . . . Level 4 . | . . . . . Level 5 . | . . . . . High Security . | . . . . . Max Security . | . . . . . Squads Dispatched 3 | . 1 1 . 1 Investigation . | . . . . . Extermination . | . . . . . Reinforcement 3 | . 1 1 . 1 Assault . | . . . . . Garrison . | . . . . . Intercept . | . . . . . Searches Triggered . | . . . . . Construction Impeded . | . . . . . Haulers Reinforced . | . . . . . Active Scanning Responses . | . . . . . Cargo Convoy Interrupts . | . . . . . Stealth | -11 -10 -9 -9 -8 --------- Run | Yrd Mat Mat Min Mat Distress Signals 4 | . . 1 . 3 Communications Jammed . | . . . . . Distress Signals . | . . . . . Times Spotted 33 | . 2 5 4 22 Peak Tracking Total 8 | . 1 3 4 8 Tactical Retreats 1 | . . . . 1 Traps | -11 -10 -9 -9 -8 ------- Run | Yrd Mat Mat Min Mat Traps Triggered 1 | . 1 . . . Indirectly . | . . . . . Trap Hack Attempts . | . . . . . Triggered . | . . . . . Disarmed . | . . . . . Reprogrammed . | . . . . . Reused . | . . . . . Traps Extracted . | . . . . . Installed . | . . . . . Triggered . | . . . . . Machines | -11 -10 -9 -9 -8 ---------- Run | Yrd Mat Mat Min Mat Machines Disabled 1 | . . . . 1 Max in Single Turn 1 | . . . . 1 Machines Repaired . | . . . . . Machines Dismantled . | . . . . . Machines Sabotaged . | . . . . . Overloaded Fab Kills . | . . . . . Hacking | -11 -10 -9 -9 -8 --------- Run | Yrd Mat Mat Min Mat Machines Accessed 6 | . 3 1 . 2 Terminals 4 | . 1 1 . 2 Fabricators . | . . . . . Repair Stations . | . . . . . Recycling Units 2 | . 2 . . . Scanalyzers . | . . . . . Garrison Access . | . . . . . Total Hacks 14 | . 6 2 . 6 Successful 7 | . 4 1 . 2 Failed 7 | . 2 1 . 4 Catastrophic 1 | . . . . 1 Database Lockouts . | . . . . . Manual 2 | . 2 . . . Terminals 11 | . 3 2 . 6 Fabricators . | . . . . . Repair Stations . | . . . . . Recycling Units 3 | . 3 . . . Scanalyzers . | . . . . . Garrison Access . | . . . . . Terminal Hacks 5 | . 2 1 . 2 Record 2 | . . . . 2 Prototype ID Bank 1 | . . 1 . . Emergency Access Points 1 | . 1 . . . Registered Components 1 | . 1 . . . Fabricator Hacks . | . . . . . Repair Station Hacks . | . . . . . Recycling Unit Hacks 2 | . 2 . . . Retrieve Components 2 | . 2 . . . Scanalyzer . | . . . . . Garrison Access Hacks . | . . . . . Unauthorized Hacks . | . . . . . Terminals . | . . . . . Fabricators . | . . . . . Repair Stations . | . . . . . Recycling Units . | . . . . . Scanalyzers . | . . . . . Garrison Access . | . . . . . Data Cores Recovered 1 | . . . . 1 Used 1 | . . . . 1 Hacking Detections 5 | . 2 1 . 2 Full Trace Events . | . . . . . Feedback Events . | . . . . . Feedback Blocked . | . . . . . Robot Schematics Acquired . | . . . . . Robots Built . | . . . . . Authchips . | . . . . . Time . | . . . . . Total Robot Build Rating . | . . . . . Part Schematics Acquired . | . . . . . Parts Built . | . . . . . Authchips . | . . . . . Time . | . . . . . Total Part Build Rating . | . . . . . Parts Repaired . | . . . . . Time . | . . . . . Parts Recycled . | . . . . . Recycled Matter . | . . . . . Retrieved Matter . | . . . . . Retrieved Components 1 | . 1 . . . Parts Scanalyzed . | . . . . . Part Schematics Acquired . | . . . . . Parts Damaged . | . . . . . Bothacking | -11 -10 -9 -9 -8 ------------ Run | Yrd Mat Mat Min Mat Used RIF Installer . | . . . . . Robots Hacked . | . . . . . Non-combat . | . . . . . Combat . | . . . . . Robot Hacks Applied . | . . . . . Relay Couplers Released . | . . . . . Fabnet Peak Effective % . | . . . . . Robots Rewired . | . . . . . Allies Hacked . | . . . . . Hacks Repelled . | . . . . . Allies | -11 -10 -9 -9 -8 -------- Run | Yrd Mat Mat Min Mat Total Allies 1 | . . . 1 . Largest Group 1 | . . . 1 . Highest-Rated Group 31 | . . . 31 . Highest-Rated Ally 31 | . . . 31 . Total Orders . | . . . . . Ally Attacks 5 | . . . 5 . Total Damage 43 | . . . 43 . Kills 2 | . . . 2 . Allies Corrupted . | . . . . . Allies Melted . | . . . . . Intel | -11 -10 -9 -9 -8 ------- Run | Yrd Mat Mat Min Mat Robot Analysis Total . | . . . . . Derelict Logs Recovered 3 | . . . 3 . Drone Launches . | . . . . . Drone Recoveries . | . . . . . Exploration | -11 -10 -9 -9 -8 ------------- Run | Yrd Mat Mat Min Mat Turns Passed 1785 | 118 436 146 566 519 Spaces Moved 1288 | 87 282 59 459 401 Core 9 | 8 . . . 1 Treads 22 | . . . . 22 Legs 1020 | 79 282 59 459 141 Wheels 5 | . . . . 5 Hover . | . . . . . Flight 232 | . . . . 232 Fastest Speed 34 | 50 120 120 120 34 Average Speed 114 | 117 144 148 120 80 Slowest Speed 400 | 120 190 190 120 400 Overloaded Moves . | . . . . . Propulsion Burnouts . | . . . . . Robots Hopped 4 | . . . . 4 Cave-ins Triggered . | . . . . . Exploration Rate (%) 35 | 4 48 5 94 25 Regions Visited 4 Branch Regions 1 Pre-discovered Areas 1 | . . . 1 . Known Exits Taken 1 | . . . 1 . Unknown Exits Taken 3 | 1 1 1 . . Scrap Searched 1 | . . . 1 . Spaces Dug . | . . . . . Terrain Destroyed 11 | . . . . 11 Melee . | . . . . . Projectile . | . . . . . AOE 11 | . . . . 11 Terrain Rammed . | . . . . . Walls Destroyed . | . . . . . Machines Disabled . | . . . . . Actions | -11 -10 -9 -9 -8 --------- Run | Yrd Mat Mat Min Mat Total 1475 | 100 307 80 468 520 Wait 21 | 2 . . 4 15 Move 1276 | 86 281 58 458 393 Hop 4 | . . . . 4 Pick Up 25 | 6 9 . 2 8 Fast Attach 26 | 6 3 2 . 15 Attach 13 | . . 1 1 11 Detach 9 | . . . . 9 Swap 8 | . 2 1 . 5 Drop 27 | . 9 . . 18 Fire 66 | . 3 18 3 42 Melee . | . . . . . Ram . | . . . . . Kick . | . . . . . Crush . | . . . . . Escape Stasis . | . . . . . Rewire . | . . . . . Trap . | . . . . . Miscellaneous . | . . . . . Route ------- -11/Scrapyard -10/Materials -9/Materials -9/Mines (discovered 2 exits: *Mat x2) -8/Materials History --------- Turn | Location | Event 6 | -11/Scrapyard | Discovered new exit (range 15) 119 | -11/Scrapyard | Entered Materials 307 | -10/Materials | Build established: Mutant 328 | -10/Materials | Discovered new exit (range 14) 555 | -10/Materials | Entered another Materials area 555 | -9/Materials | Evolved 2 slots: Propulsion x1, Utility x1 555 | -9/Materials | Discovered new exit (range 10) 701 | -9/Materials | Entered Mines 708 | -9/Mines | Met a Derelict bent on vengeance 717 | -9/Mines | Received a Mining Laser from a helpful Derelict 935 | -9/Mines | Discovered new exit (range 15) 1038 | -9/Mines | Learned Materials terminal intel 1050 | -9/Mines | Identified exit to Materials 1067 | -9/Mines | Learned location of Zion (-6) 1267 | -9/Mines | Entered Materials 1267 | -8/Materials | Evolved 2 slots: Utility x1, Weapon x1 1268 | -8/Materials | Loaded intel: 12 terminal locations 1638 | -8/Materials | Core integrity fell below 50% 1745 | -8/Materials | Core integrity fell below 20% 1786 | -8/Materials | Destroyed by C-17 Slicer with Blade Saw Last Messages --------------- Acquired 20 matter. K-01 Serf collects debris. Acquired 10 matter. ECM Suite destroyed. Slug penetrates Wall. Dropped Particle Gun. Acquired Deuterium Engine. 01756_ Dropped Flail. 01758_ ALERT: Suspicious intruders detected, dispatching Cutter reinforcements to area. 01760_ Acquired Lgt. Nuclear Core. 01762_ Acquired Imp. Datajack. 01768_ Lgt. Angular Momentum Engine destroyed. 01770_ Imp. Flight Unit destroyed. 01771_ Dropped Adv. Beam Rifle. 01775_ Acquired Broken Carbon-fiber Leg. 01776_ Knocked back. 01776_ Broken Carbon-fiber Leg destroyed. 01776_ C-17 Slicer knocked back. 01776_ Acquired 25 matter. Map ----- +----------------------------------------------------+ | ?????????????????????????????????????????????????? | | ?????????????????????????????????????????????????? | | ?????????????????????????????????????????????????? | | ?????????????????????????????????????????????????? | | ?????????????????????????????????????????????????? | | ?????????????????????????????????????????????????? | | ?????????????????????????????????????????????????? | | ?????????????????????????????????????????????????? | | ?????????????????????????????????????????????????? | | ?????????????????????????????????????????????????? | | ????????????????????????????????"""??????????????? | | ????????????????????????????????"T"??????????????? | | ??????????????????????????#+####"?"??????????????? | | ?????????????????????????? ??????????????? | | ?????????????????????????? ??????????????? | | ?????????????????????????? ]] ""?????????????? | | ???????????? ????????""??# ] """????????????? | | ???????????? ??? ????""?# """"????"T"????? | | ???????????# ??? ???T"?# ???"""????? | | ???????????# #??"""??""?# r ???????????? | | ???????????# #???"" ?""?# ?????????????? | | ???????????# #????" ???# ???????????????? | | ???????????# #????? ??# ?????????????????? | | ??????????## ########o### #??????????????????? | | ??????????# w #??????????????????? | | ??????????# @ ## """?????????????? | | ??????????# c k """?????????????? | | ??????????# c ## """?????????????? | | ??????????# #??????????????????? | | ??????????# #####+#########??????????????????? | | ???####+### #????????????????????????????????? | | ???# #????????????????????????????????? | | ???# #????????????????????????????????? | | ???# #????????????????????????????????? | | ???# #????????????????????????????????? | | ???# #????????????????????????????????? | | ???# ####+###????????????????????????????????? | | #??#% #???????????????????????????????????????? | | #### ! #???????????????????????????????????????? | | *===%% % + ??????????????????????????????????????? | | #### !! #???????????????????????????????????????? | | | #* #???????????????????????????????????????? | | !# #???????????????????????????????????????? | | ## ##???????????????????????????????????????? | | =## #????????????????????????????????????????? | | ## #????????????????????????????????????????? | | +#### #????????????????????????????????????????? | | ???? #????????????????????????????????????????? | | ???? #????????????????????????????????????????? | | ???? #???????????????????????????"T"??????????? | +----------------------------------------------------+ Best States ------------- Heat Dissipation 45 Energy Generation 18 Energy Capacity 500 Matter Stores 300 Matter Capacity 300 Sight Range 16 Terrain Scan Density 10 ECM Strength 1 Armor Coverage 225 Weapon Shielding 33 Evasion (%) 63 Recoil Reduction 1 Salvage Targeting 1 Item Schematics ----------------- None Robot Schematics ------------------ None Fabricated ------------ Nothing Alien Tech Used ----------------- None Achievements -------------- Dynamic Key Challenges ------------ None Game ------ Seed SapperCorruptionImmobilizer Manual? 0 Play Time 00:36:32 Cumulative 3.1 hours Start 2024.11.18 @ 15:48:33 End 2024.11.18 @ 16:52:17 Sessions 3 Manual Loads 0 Difficulty Rogue Special Mode None Game No. 4 Rogue 4 Adventurer 0 Explorer 0 Win Type - Total 0 Types 0/0/0/0/0/0/0/0/0 Lore% 3 Gallery% 6 Achievement% 9 Wizard Run 0 Options --------- Layout 0 ASCII 0 Keyboard 0 Movement Mouse Keybinds 0 Fullscreen 2 Font 24/X11 Map View 76x50 Zoom Use 0% Tactical HUD 1 Map Filters NONE Filters NONE Steam 1 RUN: 5ac9f7da-d5e7-4d24-9a87-939af7468416